Cogmind - Beta 16.1 @@@ ROGUE MODE // 2026.04.23 @ 15:50:50 Player: Prakos Result: Self-destructed Performance ------------- Evolutions (1) 500 Regions Visited (2) 400 Robots Destroyed (27) 135 Value Destroyed (536) 536 Prototype IDs (0) 0 Alien Tech Used (0) 0 Bonus (0) 0 TOTAL SCORE: 1571 Bonus ------- None Cogmind --------- Core Integrity 320/400 Matter 300/300 Energy 67/125 System Corruption 0% Temperature Cool (0) Movement Treading (160) Location -9/Materials Parts ------- > --- POWER (1) -------- Light Ion Engine > --- PROPULSION (3) --- Light Treads Light Treads > --- UTILITY (3) ------ Improved Heat Sink Large Storage Unit > --- WEAPON (2) ------- Beam Cannon > --- INVENTORY (15) --- Ion Engine Aluminum Leg Aluminum Leg Heat Sink Heat Sink High-capacity Storage Unit Sensor Array Signal Interpreter Medium Armor Plating Assault Rifle Grenade Launcher Mining Claw Peak State ------------ > --- POWER ------------ Improved Ion Engine > --- PROPULSION ------- Light Treads Light Treads Aluminum Leg > --- UTILITY ---------- Improved Heat Sink Large Storage Unit Seismic Detector > --- WEAPON ----------- Beam Rifle Beam Cannon > --- INVENTORY -------- Ion Engine Light Ion Engine Aluminum Leg Heat Sink Heat Sink High-capacity Storage Unit Sensor Array Signal Interpreter Assault Rifle Grenade Launcher Mining Claw [Rating: 14] Favorites ----------- Power Ion Engine Engine Ion Engine Propulsion Light Treads Treads Light Treads Leg Aluminum Leg Utility Improved Heat Sink Device Improved Heat Sink Storage Large Storage Unit Weapon Beam Cannon Energy Gun Beam Rifle Energy Cannon Beam Cannon Ballistic Gun Assault Rifle Launcher Grenade Launcher Slashing Weapon Mining Claw Build | -11 -10 -9 ------- Run | Yrd Mat Mat Slots Evolved 2 | . . 2 Power . | . . . Propulsion 1 | . . 1 Utility 1 | . . 1 Weapon . | . . . Parts Attached 18 | 6 7 5 Power 3 | 1 . 2 Engine 3 | 1 . 2 Core . | . . . Reactor . | . . . Propulsion 4 | 2 . 2 Treads 3 | 2 . 1 Leg 1 | . . 1 Wheel . | . . . Hover . | . . . Flight . | . . . Utility 5 | 1 4 . Device 2 | . 2 . Storage 3 | 1 2 . Processor . | . . . Hackware . | . . . Protection . | . . . Artifact . | . . . Weapon 6 | 2 3 1 Energy Gun 2 | 1 . 1 Energy Cannon 1 | . 1 . Ballistic Gun 1 | 1 . . Ballistic Cannon . | . . . Launcher 1 | . 1 . Special Weapon . | . . . Impact Weapon . | . . . Slashing Weapon 1 | . 1 . Piercing Weapon . | . . . Special Melee Weapon . | . . . Unidentified Prototypes . | . . . Parts Lost 4 | . . 4 Power 1 | . . 1 Propulsion 1 | . . 1 Utility 1 | . . 1 Weapon 1 | . . 1 Highest Loss Streak 4 | . . 4 To Critical Strikes . | . . . Average Backups 7 | 1 6 11 Power 1 | . 1 1 Propulsion 1 | . 2 1 Utility 3 | . 2 5 Weapon 1 | . . 2 Tool/Special . | . . . Unused Backups 7 | . . 7 Power . | . . . Propulsion 1 | . . 1 Utility 6 | . . 6 Weapon . | . . . Tool/Special . | . . . Average Slot Usage (%) 96 | . 99 93 Engine 12 | . 14 9 Treads 27 | . 28 27 Leg 1 | . . 4 Device 15 | . 13 19 Storage 12 | . 14 11 Energy Gun 3 | . 1 6 Energy Cannon 11 | . 11 11 Ballistic Gun 9 | . 13 3 Peak Build Rating 14 | 6 10 14 Average Rating 9 | 3 8 12 On Entrance 5 | . 6 10 Avg Prop Armor Cover (%) 5 | . . 5 Naked Turns . | . . . Heaviest Build 35 | 13 31 35 Greatest Support 60 | 40 40 60 Greatest Overweight (x) 1 | 1 . . Average Overweight (x) . | . . . Largest Inventory Capacity 15 | 8 15 15 Average Capacity 11 | 6 9 15 Most Carried 13 | 3 10 13 Average Carried 7 | 1 6 11 Final Capacity 15 | 8 15 15 Final Carried 12 | 3 10 12 Class Distribution -------------------- 84% | Mutant 15% | Scavenger-Mutant Dominant Class ---------------- Mutant | -10/Materials Mutant | -9/Materials Resources | -11 -10 -9 ----------- Run | Yrd Mat Mat Matter Collected 512 | 198 136 178 Remotely . | . . . Salvage Created 823 | . 228 595 Parts 44 | . 17 27 Haulers Intercepted . | . . . Recyclers Shooed 3 | . 1 2 Parts Field Recycled . | . . . Retrieved Matter . | . . . Parts Self-Destructed . | . . . Prevented . | . . . Parts Restored . | . . . Kills | -11 -10 -9 ------- Run | Yrd Mat Mat Combat Hostiles Destroyed 21 | . 9 12 Guns 10 | . 2 8 Cannons 5 | . 2 3 AOE 5 | . 5 . Classes Destroyed 6 | . 3 3 Recycler 3 | . . 3 Watcher 3 | . 2 1 Swarmer 13 | . 6 7 Grunt 5 | . 3 2 Duelist 1 | . . 1 Sentry 2 | . . 2 Best Kill Streak 14 | . 6 14 Combat Bots Only 10 | . 6 10 Max Kills in Single Turn 4 | . 4 2 Gunslinging . | . . . Exploded 4 | . 4 . Melee . | . . . Uniques/NPCs Destroyed . | . . . Combat | -11 -10 -9 -------- Run | Yrd Mat Mat Hostile Shots Fired 117 | . 31 86 Missed 32 | . 8 24 Hits 85 | . 23 62 Melee 2 | . . 2 Projectile 83 | . 23 60 Damage Taken 833 | . 224 609 Core 102 | . 22 80 Absorbed by Shields . | . . . Core Remaining (%) 95 | 100 91 . Volleys Fired 52 | . 18 34 Largest 2 | . 2 2 Hottest 116 | . 80 116 Shots Fired 100 | . 33 67 Gun 51 | . 18 33 Cannon 47 | . 13 34 Launcher 2 | . 2 . Special . | . . . Kinetic 23 | . 18 5 Thermal 75 | . 13 62 Explosive 2 | . 2 . Electromagnetic . | . . . Robot Hit Streak 7 | . 7 6 Robot Miss Streak 3 | . 2 3 Penetration Max . | . . . Secondary Targets . | . . . Shots Hit Robots 52 | . 14 38 Core Hits 31 | . 13 18 Critical Kills 1 | . . 1 Critical Parts Destroyed . | . . . Critical Strikes 3 | . . 3 Burn 2 | . . 2 Meltdown 1 | . . 1 Melee Attacks 2 | . 1 1 Impact . | . . . Slashing 2 | . 1 1 Piercing . | . . . Sneak Attacks . | . . . Combat Hostiles . | . . . Follow-up Attacks . | . . . Damage Inflicted 1097 | 1 419 677 Guns 394 | . 68 326 Cannons 474 | . 123 351 Explosions 219 | . 219 . Melee . | . . . Ramming 10 | 1 9 . Kinetic 132 | . 68 64 Thermal 736 | . 123 613 Explosive 219 | . 219 . Electromagnetic . | . . . Impact . | . . . Slashing . | . . . Piercing . | . . . Highest Corruption . | . . . Average Corruption . | . . . Corruption Purged . | . . . Corruption Blocked . | . . . Overload Shots . | . . . Overflow Damage . | . . . Projectiles . | . . . Explosions . | . . . Melee . | . . . Knockbacks . | . . . Impact . | . . . Kinetic . | . . . Secondary . | . . . Self-Inflicted Damage 20 | . 20 . Shots 1 | . 1 . Rammed 3 | 1 2 . Targets Rammed 3 | 1 2 . Kicked . | . . . Crushed . | . . . Highest Temperature 108 | . 45 108 Average Temperature 35 | . 22 39 Received Heat Transfer 102 | . 33 69 Siege Activations . | . . . Martial Activations . | . . . Shielding Activations . | . . . Robots Disrupted . | . . . Combat Hostiles . | . . . Robots Corrupted . | . . . Combat Hostiles . | . . . Parts Fried . | . . . Impact Corruptions . | . . . Robots Melted 1 | . . 1 Combat Hostiles 1 | . . 1 Parts Melted 4 | . . 4 Heat Transferred 1813 | . 259 1554 Parts Sabotaged . | . . . Parts Stolen . | . . . Parts Stripped . | . . . Power Chain Reactions . | . . . Alert | -11 -10 -9 ------- Run | Yrd Mat Mat Maximum Alert Level 1 | . . 1 Low Security (%) 96 | 100 100 88 Level 1 3 | . . 11 Level 2 . | . . . Level 3 . | . . . Level 4 . | . . . Level 5 . | . . . High Security . | . . . Max Security . | . . . Peak Influence 270 | . 148 270 Initial 53 | . . 53 Average 54 | . 29 109 Influence Increases 620 | . 273 347 Destroy 0b10 Robot/C 420 | . 180 240 Destroy 0b10 Robot/NC 30 | . 10 20 Destroy Leader 76 | . 34 42 Successful Hack 16 | . 16 . Disable Machine 30 | . 15 15 Destroy Structure 18 | . 18 . Lose Combat Pursuer 30 | . . 30 Influence Decreases 360 | . 145 215 Entered New Map 75 | . . 75 Time Decay 205 | . 105 100 Lost Part 40 | . . 40 Purge Threat 40 | . 40 . Squads Dispatched 1 | . . 1 Investigation . | . . . Extermination . | . . . Reinforcement 1 | . . 1 Assault . | . . . Garrison . | . . . Intercept . | . . . Searches Triggered . | . . . Construction Impeded . | . . . Haulers Reinforced . | . . . Active Scanning Responses . | . . . Cargo Convoy Interrupts . | . . . Stealth | -11 -10 -9 --------- Run | Yrd Mat Mat Distress Signals 2 | . . 2 Communications Jammed . | . . . Distress Signals . | . . . Times Spotted 30 | . 13 17 Peak Tracking Total 6 | . 6 6 Tactical Retreats 1 | . . 1 Traps | -11 -10 -9 ------- Run | Yrd Mat Mat Traps Triggered . | . . . Indirectly . | . . . Trap Hack Attempts . | . . . Triggered . | . . . Disarmed . | . . . Reprogrammed . | . . . Reused . | . . . Traps Extracted . | . . . Installed . | . . . Triggered . | . . . Machines | -11 -10 -9 ---------- Run | Yrd Mat Mat Machines Disabled 2 | . 1 1 Max in Single Turn 1 | . 1 1 Machines Repaired . | . . . Machines Dismantled . | . . . Machines Sabotaged . | . . . Overloaded Fab Kills . | . . . Hacking | -11 -10 -9 --------- Run | Yrd Mat Mat Machines Accessed 4 | . 4 . Terminals 2 | . 2 . Fabricators . | . . . Repair Stations . | . . . Recycling Units 2 | . 2 . Scanalyzers . | . . . Garrison Access . | . . . Total Hacks 9 | . 9 . Successful 7 | . 7 . Failed 2 | . 2 . Catastrophic 1 | . 1 . Database Lockouts . | . . . Manual 5 | . 5 . Terminals 7 | . 7 . Fabricators . | . . . Repair Stations . | . . . Recycling Units 2 | . 2 . Scanalyzers . | . . . Garrison Access . | . . . Terminal Hacks 4 | . 4 . Part Schematic 2 | . 2 . Level Access Points 1 | . 1 . Unreport Threat 1 | . 1 . Fabricator Hacks . | . . . Repair Station Hacks . | . . . Recycling Unit Hacks 2 | . 2 . Retrieve Components 2 | . 2 . Scanalyzer . | . . . Garrison Access Hacks . | . . . Unauthorized Hacks 1 | . 1 . Terminals 1 | . 1 . Botnet 1 | . 1 . Fabricators . | . . . Repair Stations . | . . . Recycling Units . | . . . Scanalyzers . | . . . Garrison Access . | . . . Data Cores Recovered . | . . . Used . | . . . Hacking Detections 1 | . 1 . Full Trace Events . | . . . Feedback Events . | . . . Feedback Blocked . | . . . Robot Schematics Acquired . | . . . Robots Built . | . . . Authchips . | . . . Time . | . . . Total Robot Build Rating . | . . . Part Schematics Acquired 2 | . 2 . Parts Built . | . . . Authchips . | . . . Time . | . . . Total Part Build Rating . | . . . Part Studies Acquired . | . . . Parts Repaired . | . . . Time . | . . . Parts Recycled . | . . . Recycled Matter . | . . . Retrieved Matter . | . . . Retrieved Components 5 | . 5 . Parts Scanalyzed . | . . . Part Schematics Acquired . | . . . Parts Damaged . | . . . Bothacking | -11 -10 -9 ------------ Run | Yrd Mat Mat Used RIF Installer . | . . . Robots Hacked . | . . . Non-combat . | . . . Combat . | . . . Robot Hacks Applied . | . . . Relay Couplers Released . | . . . Fabnet Peak Effective % . | . . . Robots Rewired . | . . . Allies Hacked . | . . . Hacks Repelled . | . . . Allies | -11 -10 -9 -------- Run | Yrd Mat Mat Total Allies . | . . . Largest Group . | . . . Highest-Rated Group . | . . . Highest-Rated Ally . | . . . Total Orders . | . . . Ally Attacks . | . . . Total Damage . | . . . Kills . | . . . Allies Corrupted . | . . . Allies Melted . | . . . Intel | -11 -10 -9 ------- Run | Yrd Mat Mat Active Infowar (turns) 278 | . 105 173 Seismic 278 | . 105 173 Robot Analysis Total . | . . . Derelict Logs Recovered . | . . . Drone Launches . | . . . Drone Recoveries . | . . . Exploration | -11 -10 -9 ------------- Run | Yrd Mat Mat Turns Passed 629 | 60 351 218 Spaces Moved 250 | 35 163 52 Core 9 | 9 . . Treads 241 | 26 163 52 Legs . | . . . Wheels . | . . . Hover . | . . . Flight . | . . . Fastest Speed 50 | 50 160 160 Average Speed 156 | 136 160 160 Slowest Speed 160 | 160 160 160 Overloaded Moves . | . . . Propulsion Burnouts . | . . . Robots Hopped . | . . . Potential Cave-ins . | . . . Cave-ins Triggered . | . . . Exploration Rate (%) 15 | 3 37 7 Regions Visited 2 Branch Regions . Pre-discovered Areas . | . . . Known Exits Taken 1 | . 1 . Unknown Exits Taken 1 | 1 . . Scrap Searched . | . . . Spaces Dug . | . . . Terrain Destroyed 15 | . 15 . Melee . | . . . Projectile . | . . . AOE 15 | . 15 . Terrain Rammed . | . . . Walls Destroyed . | . . . Machines Disabled . | . . . Actions | -11 -10 -9 --------- Run | Yrd Mat Mat Total 375 | 44 215 116 Wait 30 | . 13 17 Move 249 | 35 162 52 Hop . | . . . Pick Up 11 | 3 6 2 Fast Attach 11 | 6 3 2 Attach 3 | . . 3 Detach 3 | . 1 2 Swap 9 | . 6 3 Drop 3 | . 3 . Fire 52 | . 18 34 Melee 2 | . 1 1 Ram . | . . . Kick . | . . . Crush 2 | . 2 . Escape Stasis . | . . . Rewire . | . . . Trap . | . . . Miscellaneous . | . . . Route ------- -11/Scrapyard -10/Materials (discovered 3 exits: *Mat x3) -9/Materials History --------- Turn | Location | Event 40 | -11/Scrapyard | Discovered new exit (range 14) 61 | -11/Scrapyard | Entered Materials 88 | -10/Materials | Identified exit to Materials 302 | -10/Materials | Build established: Mutant 412 | -10/Materials | Entered another Materials area 412 | -9/Materials | Evolved 2 slots: Propulsion x1, Utility x1 630 | -9/Materials | Self-destructed Last Messages --------------- 00606_ K-01 Serf collects debris. 00606_ R-06 Scavenger collects Lgt. Ion Engine. 00608_ R-06 Scavenger destroyed. 00608_ R-06 Scavenger collects Hover Unit. 00610_ K-01 Serf collects debris. 00610_ R-06 Scavenger collects Lgt. Assault Rifle. 00611_ S-10 Pest destroyed. 00612_ R-06 Scavenger collects Hover Unit. 00614_ R-06 Scavenger collects Flight Unit. 00615_ Acquired 10 matter. 00617_ S-10 Pest destroyed. 00617_ R-06 Scavenger collects Lgt. Ion Engine. 00621_ R-06 Scavenger collects Lgt. Assault Rifle. 00623_ S-10 Pest destroyed. 00623_ R-06 Scavenger collects Lgt. Assault Rifle. 00628_ R-06 Scavenger collects Tractor Beam. 00628_ Beam Rifle destroyed. Map ----- +----------------------------------------------------+ | ?????????????????????????????????????????????????? | | ?????????????????????????????????????????????????? | | ?????????????????????????????????????????????????? | | ?????????????????????????????????????????????????? | | ?????????????????????????????????????????????????? | | ?????????????????????????????????????????????????? | | ?????????????????????????????????????????????????? | | ?????????????????????????????????????????????????? | | ?????????????????????????????????????????????????? | | ?????????????????????????????????????????????????? | | ?????????????????????????????????????????????????? | | ?????????????????????????????????????????????????? | | ?????????????????????????????????????????????????? | | ?????????????????????????????????????????????????? | | ?????????????????????????????????????????????????? | | ?????????????????????????????????????????????????? | | ?????????????????????????????????????????????????? | | ?????????????????????????????????????????????????? | | ??????????###?????##?????????????????????????????? | | ??????????? ##### ????????????????????????????? | | ???????????? ???????????????? ?????????? | | ?????????????? ??????????????? #????????? | | ???????????????? ??????????????? #????????? | | ??????????????????# ?????????????? #????????? | | ???????????######### ######???????# #????????? | | ???????? t % %%@ #???????# #????????? | | ???????? % %%%% !#???????# #????????? | | ???????? =%%%%#???????# #????????? | | ?????????###+############%r*#???????# #????????? | | ????????????????????????# #???????# #????????? | | ????????????????????????# #???????#^^ #????????? | | ???????????????????????## ##?????## ##???????? | | ???????????????????????# ####### #???????? | | ???????????????????????# ! #???????? | | ???????????????????????# ! #???????? | | ???????????????????????# #???????? | | ???????????????????????# ####### #???????? | | ???????????????????????#######?????## ##???????? | | ????????????????????????????????????# #????????? | | ????????????????????????????????????# #????????? | | ????????????????????????????????????# #????????? | | ????????????????????????????????????# #????????? | | ????????????????????????????????????# #????????? | | ?????????????????????????????######## #????????? | | ?????????????????????????????# #????????? | | ?????????????????????????????# #????????? | | ?????????????????????????????# #????????? | | ?????????????????????????????# ########????????? | | ?????????????????????????????# #???????????????? | | ?????????????????????????????# #???????????????? | +----------------------------------------------------+ Best States ------------- Heat Dissipation 42 Energy Generation 12 Energy Capacity 265 Matter Stores 300 Matter Capacity 300 Sight Range 16 Terrain Scan Density 10 Evasion (%) 40 Recoil Reduction 3 Item Schematics ----------------- Lgt. Treads | -10/Materials | Hacked Heat Sink | -10/Materials | Hacked Robot Schematics ------------------ None Fabricated ------------ Nothing Repaired ---------- Nothing Studied --------- None Alien Tech Used ----------------- None Achievements -------------- None Challenges ------------ None Game ------ Seed LightningMagneticDoomcannon Manual? 0 Play Time 00:15:37 Cumulative 74.1 hours Start 2026.04.23 @ 15:35:43 End 2026.04.23 @ 15:50:50 Sessions 1 Manual Loads 0 Difficulty Rogue Special Mode None Game No. 52 Rogue 52 Adventurer 0 Explorer 0 Win Type - Total 1 Types 1/0/0/0/0/0/0/0/0/0 Lore% 24 Gallery% 34 Achievement% 28 Wizard Run 0 Options --------- Layout 1 ASCII 0 Keyboard 0 Movement Numpad Keybinds 0 Fullscreen 1 Font 24/Smallcaps Map View 50x35 Zoom Use 0% Tactical HUD 1 Map Filters NONE Filters NONE Steam 1 RUN: 48f2aa56-4427-4e52-bcfc-e86088433db9